bitfinex-derivatives/quotes_BTCF0:USTF0_20250406
["timestamp","ask_amount","ask_price","bid_price","bid_amount"]
[1743949401971,0.2158776,82453.0,82452.0,0.0856576]
[1743949402861,0.2178776,82453.0,82452.0,0.0856576]
[1743949403961,0.2178776,82453.0,82452.0,0.0855776]
[1743949405772,0.2178776,82453.0,82452.0,0.00064]
[1743949406073,0.0849386,82452.0,82451.0,0.0850196]
[1743949406262,0.0955786,82452.0,82451.0,0.0856596]
[1743949406463,0.2041786,82452.0,82451.0,0.0856596]
[1743949406669,0.2041786,82452.0,82451.0,1.5856596]
[1743949407171,0.2041786,82452.0,82451.0,0.00072]
[1743949407360,0.2061786,82452.0,82451.0,8e-05]
[1743949407560,0.2161786,82452.0,82451.0,8e-05]
[1743949407962,0.0424726,82446.0,82441.0,0.12760355]
[1743949408158,0.0424726,82446.0,82441.0,0.10107635]
[1743949408159,0.0849489,82442.0,82441.0,0.10107635]
[1743949408361,0.3349489,82442.0,82441.0,1.60107635]
[1743949408574,0.3349489,82442.0,82441.0,1.60035635]
[1743949409468,0.3349489,82442.0,82441.0,1.60135635]
[1743949409774,0.3349489,82442.0,82441.0,1.50118195]
[1743949410280,0.3349489,82442.0,82441.0,1.58713185]
[1743949413668,0.3355889,82442.0,82441.0,1.58777185]
[1743949415880,0.3355889,82442.0,82441.0,1.64427185]
[1743949417182,0.3355889,82442.0,82441.0,1.58777185]
[1743949417677,0.3355889,82442.0,82441.0,1.64587185]
[1743949423681,0.44417584,82442.0,82441.0,1.64587185]
[1743949425290,0.3355889,82442.0,82441.0,1.64587185]
[1743949425877,0.36098195,82452.0,82441.0,1.92172195]
[1743949426078,0.37182195,82452.0,82451.0,0.0849396]
[1743949426380,0.00102195,82452.0,82451.0,0.0857796]
[1743949426578,0.00102195,82452.0,82451.0,0.6115796]
[1743949427283,0.0849296,82461.0,82453.0,0.0849376]
[1743949427485,0.0849296,82461.0,82453.0,0.0860576]
[1743949427782,0.0849293,82461.0,82460.0,0.0849303]
[1743949427984,0.0855693,82461.0,82460.0,0.0860103]
[1743949428577,0.1447693,82461.0,82460.0,0.2514103]
[1743949429085,0.1487693,82461.0,82460.0,0.2514103]
[1743949429689,0.1537693,82461.0,82460.0,0.2514103]
[1743949431883,0.00964,82461.0,82460.0,0.2514103]
[1743949432087,0.0945693,82461.0,82460.0,0.2514103]
[1743949434586,0.2032997,82461.0,82460.0,0.2514103]
[1743949434788,0.1183704,82461.0,82460.0,0.2514103]
[1743949435181,0.2032997,82461.0,82460.0,0.2514103]
[1743949435884,0.2571997,82461.0,82460.0,0.2514103]
[1743949436288,0.2571997,82461.0,82460.0,0.26813031]
[1743949438188,0.4871997,82461.0,82460.0,0.01780001]
[1743949438690,0.4367693,82461.0,82460.0,0.01780001]
[1743949438888,0.4467693,82461.0,82460.0,0.01780001]
[1743949439390,0.4467693,82461.0,82460.0,0.00108]
[1743949439787,0.8075693,82461.0,82460.0,0.00108]
[1743949439988,0.0849303,82460.0,82459.0,8e-05]
[1743949440182,0.3549303,82460.0,82459.0,8e-05]
[1743949440483,0.4693303,82460.0,82459.0,0.01680206]
[1743949441085,0.4733303,82460.0,82459.0,0.01680206]
[1743949441798,0.4773303,82460.0,82459.0,0.01680206]
[1743949442383,0.4973303,82460.0,82459.0,8e-05]
[1743949442883,0.4973303,82460.0,82459.0,1.50008]
[1743949443083,0.4973303,82460.0,82459.0,0.00116]
[1743949443393,0.4973303,82460.0,82459.0,0.01677713]
[1743949443595,0.4973303,82460.0,82459.0,0.10170853]
[1743949443786,0.4973303,82460.0,82459.0,0.10278853]
[1743949444294,0.4973303,82460.0,82459.0,0.10170853]
[1743949444483,0.4973303,82460.0,82459.0,1.60170853]
[1743949444678,0.4973303,82460.0,82459.0,1.51789713]
[1743949445094,0.4773303,82460.0,82459.0,1.60282853]
[1743949445489,0.6223124,82460.0,82459.0,1.60282853]
[1743949446295,0.5373821,82460.0,82459.0,1.60282853]
[1743949446499,0.4229821,82460.0,82459.0,1.60282853]
[1743949446791,0.5079124,82460.0,82459.0,1.60282853]
[1743949446991,0.2379124,82460.0,82459.0,1.71412853]
[1743949447391,0.2379124,82460.0,82459.0,1.73082869]
[1743949448300,0.0929303,82460.0,82459.0,1.71412853]
[1743949448897,0.1471303,82460.0,82459.0,1.71412853]
[1743949449384,0.0929303,82460.0,82459.0,1.71412853]
[1743949449788,0.008,82460.0,82459.0,1.71412853]
[1743949449989,0.008,82460.0,82459.0,1.81412853]
[1743949450188,0.008,82460.0,82459.0,1.71412853]
[1743949450389,0.008,82460.0,82459.0,1.73083969]
[1743949452302,0.008,82460.0,82459.0,1.71412853]
[1743949453201,0.0666,82460.0,82459.0,1.71412853]
[1743949455502,0.17527833,82460.0,82459.0,1.71412853]
[1743949455704,0.17527833,82460.0,82459.0,2.07492853]
[1743949456906,0.23337833,82460.0,82459.0,2.07492853]
[1743949458299,0.1247,82460.0,82459.0,2.07492853]
[1743949458697,0.0666,82460.0,82459.0,2.07492853]
[1743949458903,0.008,82460.0,82459.0,2.07492853]
[1743949461506,0.008,82460.0,82459.0,2.13112896]
[1743949462299,0.008,82460.0,82459.0,2.07492853]
[1743949463601,0.008,82460.0,82459.0,2.13112608]
[1743949464903,0.1125,82463.0,82462.0,0.0849283]
[1743949465105,0.1125,82463.0,82462.0,0.0860483]
[1743949465409,0.1125,82463.0,82462.0,0.2010483]
[1743949465595,0.1125,82463.0,82462.0,0.21774543]
[1743949465799,0.0549,82463.0,82462.0,0.21774543]
[1743949466000,0.1449821,82466.0,82465.0,0.0849252]
[1743949466303,0.1449821,82466.0,82465.0,0.10270233]
[1743949466504,0.1449821,82466.0,82465.0,1.61939583]
[1743949466902,0.0596,82473.0,82469.0,0.0424602]
[1743949467211,0.1166,82472.0,82471.0,0.445719]
[1743949467403,0.1166,82472.0,82471.0,0.4635725]
[1743949467598,0.0004,82480.0,82476.0,0.0424567]
[1743949467805,0.0583,82479.0,82478.0,0.0849118]
[1743949468112,0.0783,82479.0,82478.0,0.10268893]
[1743949468501,0.0783,82479.0,82478.0,0.11963557]
[1743949469611,0.0823,82479.0,82478.0,0.11963557]
[1743949470706,0.1381,82479.0,82478.0,0.12876964]
[1743949471212,0.1431,82479.0,82478.0,0.12876964]
[1743949473203,0.1231,82479.0,82478.0,0.12876964]
[1743949475903,0.1231,82479.0,82478.0,0.12860885]
[1743949476509,0.1231,82479.0,82478.0,0.48940885]
[1743949477916,0.1231,82479.0,82478.0,0.48934273]
[1743949478326,0.2080108,82479.0,82478.0,0.48934273]
[1743949478813,0.2180108,82479.0,82478.0,0.0269112]
[1743949479016,0.6380108,82479.0,82478.0,0.01669713]
[1743949479203,0.0849118,82478.0,82477.0,8e-05]
[1743949479404,0.084919,82471.0,82470.0,0.00018195]
[1743949479604,0.124919,82471.0,82470.0,1.50126195]
[1743949479808,0.124919,82471.0,82470.0,1.58618205]
[1743949480714,0.124919,82471.0,82470.0,1.59535145]
[1743949481211,0.129919,82471.0,82470.0,1.59535145]
[1743949481421,0.134919,82471.0,82470.0,1.59535145]
[1743949481621,0.124919,82471.0,82470.0,1.59535145]
[1743949483020,0.236919,82471.0,82470.0,1.59535145]
[1743949485524,0.236919,82471.0,82470.0,1.51043135]
[1743949487421,0.236919,82471.0,82470.0,1.59535145]
[1743949488621,0.236919,82471.0,82470.0,1.61210446]
[1743949489823,0.236919,82471.0,82470.0,1.66810446]
[1743949490323,0.236919,82471.0,82470.0,1.61210446]
[1743949492229,0.236919,82471.0,82470.0,1.62892002]
[1743949492430,0.236919,82471.0,82470.0,0.03483052]
[1743949492730,0.236919,82471.0,82470.0,0.01807751]
[1743949493029,0.236919,82471.0,82470.0,0.01699751]
[1743949493223,0.236919,82471.0,82470.0,0.01807751]
[1743949493423,0.246919,82471.0,82470.0,0.01807751]
[1743949493819,0.246919,82471.0,82470.0,0.01699751]
[1743949494019,0.246919,82471.0,82470.0,0.01807751]
[1743949494629,0.246919,82471.0,82470.0,0.03477959]
[1743949497216,0.246919,82471.0,82470.0,0.03476824]
[1743949497930,0.246919,82471.0,82470.0,0.09346824]
[1743949498232,0.246919,82471.0,82470.0,0.17838834]
[1743949498430,0.236919,82471.0,82470.0,0.17838834]
[1743949498632,0.236919,82471.0,82470.0,0.16169761]
[1743949502136,0.236919,82471.0,82470.0,0.07677751]
[1743949502633,0.236919,82471.0,82470.0,0.14488205]
[1743949503526,0.236919,82471.0,82470.0,0.14380205]
[1743949504225,0.236919,82471.0,82470.0,0.14488205]
[1743949504737,0.236919,82471.0,82470.0,0.05996195]
[1743949504937,0.236919,82471.0,82470.0,0.05888195]
[1743949505540,0.466919,82471.0,82470.0,0.05888195]
[1743949505838,0.246919,82471.0,82470.0,0.05888195]
[1743949506441,0.246919,82471.0,82470.0,0.06004195]
[1743949506629,0.246919,82471.0,82470.0,0.05888195]
[1743949506831,0.246919,82471.0,82470.0,0.05996195]
[1743949507740,0.236919,82471.0,82470.0,0.05996195]
[1743949508850,0.180319,82471.0,82470.0,0.07667154]
[1743949509151,0.180319,82471.0,82470.0,0.13107154]
[1743949509454,0.240119,82471.0,82470.0,0.07667154]
[1743949511146,0.240119,82471.0,82470.0,0.07559154]
[1743949511648,0.240119,82471.0,82470.0,0.07667154]
[1743949511955,0.240119,82471.0,82470.0,0.16159164]
[1743949512750,0.240119,82471.0,82470.0,0.07667154]
[1743949512957,0.240119,82471.0,82470.0,0.16159164]
[1743949518559,0.240119,82471.0,82470.0,0.07667154]
[1743949521760,0.520119,82471.0,82470.0,0.07667154]
[1743949522059,0.240119,82471.0,82470.0,0.07667154]
[1743949524266,0.240119,82471.0,82470.0,0.05996195]
[1743949525157,0.240119,82471.0,82470.0,0.14488205]
[1743949525352,0.124919,82471.0,82470.0,0.14488205]
[1743949525551,0.124919,82471.0,82470.0,0.24108205]
[1743949525754,0.124919,82471.0,82470.0,1.7578165]
[1743949525961,0.04,82471.0,82470.0,1.7578165]
[1743949526267,0.04,82471.0,82470.0,0.2578165]
[1743949526761,0.04,82471.0,82470.0,2.1186165]
[1743949526969,0.18153955,82478.0,82477.0,0.0849128]
[1743949527172,0.18153955,82478.0,82477.0,0.4467928]
[1743949527870,0.18153955,82478.0,82477.0,0.48033052]
[1743949528469,0.18653955,82478.0,82477.0,0.48033052]
[1743949528771,0.27145135,82478.0,82477.0,0.4803236]
[1743949529063,0.27145135,82478.0,82477.0,0.3954108]
[1743949529257,0.50145135,82478.0,82477.0,0.3954108]
[1743949529453,0.50145135,82478.0,82477.0,0.4803236]
[1743949529652,0.54645135,82478.0,82477.0,0.4803236]
[1743949529862,0.54645135,82478.0,82477.0,0.46352725]
[1743949530260,0.54645135,82478.0,82477.0,0.10272725]
[1743949530463,0.54645135,82478.0,82477.0,0.10164725]
[1743949530971,0.34405554,82478.0,82477.0,0.10272725]
[1743949531269,0.34405554,82478.0,82477.0,0.46352725]
[1743949531467,0.34405554,82478.0,82477.0,0.50852725]
[1743949531771,0.11405554,82478.0,82477.0,0.52522173]
[1743949534163,0.11405554,82478.0,82477.0,0.52525324]
[1743949537560,0.005,82478.0,82477.0,0.52525324]
[1743949537962,0.0004,82480.0,82478.0,0.0849118]
[1743949538272,0.14540739,82485.0,82484.0,0.0849056]
[1743949538471,0.14540739,82485.0,82484.0,0.46351159]
[1743949538668,0.61206289,82513.0,82500.0,0.0848892]
[1743949538978,0.61206289,82513.0,82509.0,0.0848799]
[1743949539275,0.3708,82510.0,82509.0,0.10160589]
[1743949539663,0.3708,82510.0,82509.0,0.10268589]
[1743949539864,0.3708,82510.0,82509.0,0.11942034]
[1743949540067,0.01,82510.0,82509.0,0.11942034]
[1743949540477,0.25126289,82513.0,82512.0,0.0848768]
[1743949540679,0.27126289,82513.0,82512.0,0.10276279]
[1743949541176,0.44463869,82513.0,82512.0,0.11949724]
[1743949542078,0.1933758,82513.0,82512.0,0.11949724]
[1743949542573,0.1933758,82513.0,82512.0,0.03462044]
[1743949542967,0.5741758,82513.0,82512.0,0.01673445]
[1743949543278,0.0848861,82503.0,82502.0,8e-05]
[1743949543467,0.0848871,82502.0,82501.0,0.00018184]
[1743949543771,0.1733871,82502.0,82501.0,0.00142184]
[1743949543974,0.1933871,82502.0,82501.0,0.12440994]
[1743949544174,0.2033871,82502.0,82501.0,0.12440994]
[1743949544871,0.1185,82502.0,82501.0,0.12440994]
[1743949545069,0.0687,82502.0,82501.0,0.12440994]
[1743949545270,0.0687,82502.0,82501.0,0.52520994]
[1743949545574,0.0391,82511.0,82510.0,0.0848789]
[1743949545767,0.2007779,82511.0,82510.0,0.0859589]
[1743949547468,0.04,82511.0,82510.0,0.0859589]
[1743949547869,0.0372,82515.0,82514.0,0.0848748]
[1743949548063,0.0472,82515.0,82514.0,0.0859548]
[1743949548573,0.00018184,82518.0,82515.0,0.0424364]
[1743949548777,0.00018184,82518.0,82517.0,0.4456717]
[1743949548978,0.0372,82522.0,82521.0,0.0848676]
[1743949549177,0.0372,82522.0,82521.0,0.0860276]
[1743949549481,0.0372,82522.0,82521.0,1.5860276]
[1743949549871,0.0372,82522.0,82521.0,1.6246276]
[1743949550071,0.0372,82522.0,82521.0,1.5860276]
[1743949550579,0.1420665,82522.0,82521.0,0.00116]
[1743949550777,0.1805665,82522.0,82521.0,0.00116]
[1743949552979,0.1805665,82522.0,82521.0,0.0860276]
[1743949557286,0.1805665,82522.0,82521.0,0.1255276]
[1743949558786,0.1805665,82522.0,82521.0,0.04066]
[1743949559181,0.1805665,82522.0,82521.0,0.0395]
[1743949559481,0.1805665,82522.0,82521.0,0.04062]
[1743949560978,0.1805665,82522.0,82521.0,0.1243676]
[1743949561287,0.1805665,82522.0,82521.0,0.1254476]
[1743949561588,0.1420665,82522.0,82521.0,0.1254476]
[1743949562083,0.1320665,82522.0,82521.0,0.1254476]
[1743949562285,0.1320665,82522.0,82521.0,1.6254476]
[1743949563486,0.1320665,82522.0,82521.0,0.1254476]
[1743949565983,0.0472,82522.0,82521.0,0.1254476]
[1743949566289,0.1320665,82522.0,82521.0,0.1254476]
[1743949566476,0.0472,82522.0,82521.0,0.1254476]
[1743949566682,0.0372,82522.0,82521.0,0.1254476]
[1743949567082,0.0848612,82528.0,82527.0,0.0848604]
[1743949567287,0.2145612,82528.0,82527.0,0.0859404]
[1743949567486,0.2555612,82528.0,82527.0,0.0859404]
[1743949568585,0.2555612,82528.0,82527.0,0.00108]
[1743949568781,0.0848614,82527.0,82526.0,0.0395]
[1743949568987,0.0848686,82520.0,82519.0,0.00018184]
[1743949569292,0.0948686,82520.0,82519.0,0.04124184]
[1743949569496,0.0948686,82520.0,82519.0,0.04116184]
[1743949569895,0.1832686,82520.0,82519.0,0.04116184]
[1743949570791,0.1732686,82520.0,82519.0,0.04116184]
[1743949571094,0.1832686,82520.0,82519.0,0.04116184]
[1743949571792,0.1832686,82520.0,82519.0,0.12603144]
[1743949572393,0.1832686,82520.0,82519.0,0.04116184]
[1743949572788,0.1732686,82520.0,82519.0,0.12603144]
[1743949575393,0.1328686,82520.0,82519.0,0.12603144]
[1743949575601,0.1328686,82520.0,82519.0,0.16543144]
[1743949575892,0.1328686,82520.0,82519.0,0.20163144]
[1743949576100,0.1328686,82520.0,82519.0,1.70163144]
[1743949578501,0.1328686,82520.0,82519.0,1.66543144]
[1743949578690,0.1328686,82520.0,82519.0,0.12603144]
[1743949578882,0.1328686,82520.0,82519.0,0.04116184]
[1743949579190,0.1696686,82520.0,82519.0,0.04008184]
[1743949579398,0.1696686,82520.0,82519.0,0.04120184]
[1743949580396,0.1896686,82520.0,82519.0,0.00130184]
[1743949580793,0.2272686,82520.0,82519.0,0.00130184]
[1743949582794,0.2272686,82520.0,82519.0,0.00018184]
[1743949585800,0.0848768,82512.0,82511.0,0.21828476]
[1743949586099,0.6956768,82512.0,82511.0,0.21944476]
[1743949586306,0.69679681,82512.0,82511.0,0.21944476]
[1743949586700,0.77359681,82512.0,82511.0,0.21944476]
[1743949591906,0.77359681,82512.0,82511.0,0.00116]
[1743949592204,0.0848789,82510.0,82509.0,0.037]
[1743949592410,0.3548789,82510.0,82509.0,0.037]
[1743949592904,0.3548789,82510.0,82509.0,1.537]
[1743949593199,0.4333789,82510.0,82509.0,1.53812]
[1743949594499,0.4333789,82510.0,82509.0,0.03812]
[1743949594700,0.4333789,82510.0,82509.0,0.037]
[1743949595206,0.4345389,82510.0,82509.0,0.03816]
[1743949596006,0.3845389,82510.0,82509.0,0.03816]
[1743949599610,0.3845389,82510.0,82509.0,0.037]
[1743949607706,0.0848851,82504.0,82503.0,0.00018184]
[1743949607912,0.7456851,82504.0,82503.0,0.00018184]
[1743949608111,0.8240851,82504.0,82503.0,0.00018184]
[1743949610221,0.8247251,82504.0,82503.0,0.00018184]
[1743949614617,0.8247251,82504.0,82503.0,4e-08]
[1743949614817,0.8247251,82504.0,82494.0,0.1266681]
[1743949614818,0.0848943,82495.0,82494.0,0.1266681]
[1743949615017,0.0848974,82492.0,82485.0,0.0366]
[1743949615222,0.9656974,82492.0,82489.0,0.29064042]
[1743949615417,0.0849067,82483.0,82476.0,0.43581332]
[1743949615728,0.9457067,82483.0,82482.0,0.32513199]
[1743949615927,0.9578262,82483.0,82482.0,0.32513199]
[1743949616335,1.0321262,82483.0,82482.0,0.32513199]
[1743949617129,0.0849118,82478.0,82477.0,0.0366]
[1743949617445,0.5549118,82478.0,82477.0,0.0366]
[1743949618041,0.6318118,82478.0,82477.0,0.0366]
[1743949619344,0.0849139,82476.0,82475.0,0.2908232]
[1743949619647,0.5949139,82476.0,82475.0,0.2908232]
[1743949620146,0.5956339,82476.0,82475.0,0.2915432]
[1743949620849,0.5986339,82476.0,82475.0,0.2915432]
[1743949622046,0.6026339,82476.0,82475.0,0.2915432]
[1743949622450,0.6026339,82476.0,82475.0,0.00072]
[1743949622946,0.0849262,82464.0,82455.0,0.00060639]
[1743949623240,0.0849314,82459.0,82455.0,0.00060639]
[1743949623442,0.0849345,82456.0,82455.0,0.00060639]
[1743949623647,0.3656545,82456.0,82455.0,0.03810639]
[1743949623838,0.3656545,82456.0,82455.0,1.53810639]
[1743949624039,0.3656545,82456.0,82455.0,1.53882639]
[1743949625941,0.3666545,82456.0,82455.0,1.53882639]
[1743949626858,0.3676545,82456.0,82455.0,1.53882639]
[1743949629056,0.4412545,82456.0,82455.0,1.53882639]
[1743949632054,0.3676545,82456.0,82455.0,1.53882639]
[1743949634151,0.3576545,82456.0,82455.0,1.53882639]
[1743949634352,0.3576545,82456.0,82455.0,1.62376189]
[1743949635262,0.3569345,82456.0,82455.0,1.77376189]
[1743949635764,0.0424658,82459.0,82458.0,0.0847824]
[1743949636053,0.1273982,82459.0,82458.0,0.0854224]
[1743949636262,0.1273982,82459.0,82458.0,0.00064]
[1743949636450,0.6673982,82459.0,82458.0,0.04004]
[1743949636649,0.3981182,82459.0,82458.0,0.04004]
[1743949637060,0.4001182,82459.0,82458.0,0.04004]
[1743949637856,0.4021182,82459.0,82458.0,0.04004]
[1743949638862,0.4021182,82459.0,82458.0,0.1249724]
[1743949639762,0.1321182,82459.0,82458.0,0.1249724]
[1743949639961,0.1313982,82459.0,82458.0,0.1249724]
[1743949640861,0.1313982,82459.0,82458.0,0.04004]
[1743949641359,0.1413982,82459.0,82458.0,0.04004]
[1743949641860,0.1413982,82459.0,82458.0,0.07904]
[1743949642363,0.1413982,82459.0,82458.0,0.1639724]
[1743949642862,0.1313982,82459.0,82458.0,0.1639724]
[1743949643667,0.1313982,82459.0,82458.0,0.07904]
[1743949644055,0.1313982,82459.0,82458.0,0.1639724]
[1743949644661,0.1313982,82459.0,82458.0,0.07904]
[1743949644861,0.1313982,82459.0,82458.0,0.04004]
[1743949644862,0.3713982,82459.0,82458.0,0.04004]
[1743949645055,0.3721182,82459.0,82458.0,0.0394]
[1743949645563,0.4100182,82459.0,82458.0,0.04004]
[1743949645966,0.4200182,82459.0,82458.0,0.0394]
[1743949646174,0.4100182,82459.0,82458.0,0.0394]
[1743949646364,0.4100182,82459.0,82458.0,0.04004]
[1743949646763,0.7708182,82459.0,82458.0,0.04004]
[1743949646967,0.7708182,82459.0,82458.0,0.0394]
[1743949650378,0.7808182,82459.0,82458.0,0.0394]
[1743949650667,0.8183182,82459.0,82458.0,0.0394]
[1743949652866,0.8083182,82459.0,82458.0,0.0394]
[1743949653263,0.0849345,82456.0,82455.0,0.00068639]
[1743949653470,0.3457345,82456.0,82455.0,0.00068639]
[1743949655369,0.5877345,82456.0,82455.0,0.00068639]
[1743949657075,0.3477345,82456.0,82455.0,0.16152189]
[1743949657372,0.3477345,82456.0,82455.0,0.16216189]
[1743949658071,0.3477345,82456.0,82455.0,0.12396189]
[1743949658666,0.3477345,82456.0,82455.0,1.62396189]
[1743949660866,0.3477345,82456.0,82455.0,0.00124639]
[1743949661161,0.0849427,82448.0,82440.0,0.36292595]
[1743949661371,0.3549427,82448.0,82447.0,0.00090184]
[1743949661564,0.0424729,82445.0,82441.0,1.5]
[1743949661772,0.0849489,82442.0,82441.0,8e-05]
[1743949661974,0.0849499,82441.0,82440.0,0.36292595]
[1743949662171,0.4389499,82441.0,82440.0,0.36292595]
[1743949663475,0.4389499,82441.0,82440.0,1.72759125]
[1743949664068,0.4389499,82441.0,82440.0,0.22759125]
[1743949664371,0.084953,82438.0,82437.0,8e-05]
[1743949664570,0.604953,82438.0,82437.0,8e-05]
[1743949665773,0.677453,82438.0,82437.0,8e-05]
[1743949666169,0.678453,82438.0,82437.0,8e-05]
[1743949666476,0.679453,82438.0,82437.0,8e-05]
[1743949666877,0.68041301,82438.0,82437.0,8e-05]
[1743949668371,0.68041301,82438.0,82437.0,1.50008]
[1743949668675,0.68041301,82438.0,82437.0,1.50072]
[1743949672071,0.68041301,82438.0,82437.0,0.00072]
[1743949672281,0.68041301,82438.0,82437.0,8e-05]
[1743949672778,0.08791301,82438.0,82437.0,1.585034]
[1743949673370,0.086953,82438.0,82437.0,1.585034]
[1743949673581,0.002,82438.0,82437.0,1.585034]
[1743949674165,0.10856938,82440.0,82439.0,0.084952]
[1743949674569,0.08512705,82446.0,82445.0,0.0849458]
[1743949674785,0.08512705,82446.0,82445.0,0.4457458]
[1743949675270,0.08604705,82446.0,82445.0,0.4463858]
[1743949675466,0.08604705,82446.0,82445.0,0.5218858]
[1743949676176,0.08904705,82446.0,82445.0,0.5218858]
[1743949677183,0.09104705,82446.0,82445.0,0.5218858]
[1743949677674,0.08804705,82446.0,82445.0,0.5218858]
[1743949677880,0.09104705,82446.0,82445.0,0.5218858]
[1743949678273,0.00610195,82446.0,82445.0,0.5218858]
[1743949678473,0.0849438,82451.0,82450.0,0.0849396]
[1743949678674,0.0858638,82451.0,82450.0,0.0855796]
[1743949681181,0.1244638,82451.0,82450.0,0.0855796]
[1743949681482,0.3944638,82451.0,82450.0,0.00064]
[1743949681678,0.4310638,82451.0,82450.0,0.00064]
[1743949691387,0.7918638,82451.0,82450.0,0.00064]
[1743949691582,0.0849417,82449.0,82448.0,8e-05]
[1743949691787,0.35590171,82449.0,82448.0,8e-05]
[1743949691987,0.0849479,82443.0,82442.0,0.0371]
[1743949692182,0.0949479,82443.0,82442.0,0.0371]
[1743949692389,0.4557479,82443.0,82442.0,0.0371]
[1743949692594,0.4557479,82443.0,82441.0,8e-05]
[1743949692595,0.0849489,82442.0,82441.0,8e-05]
[1743949692793,0.2086489,82442.0,82441.0,8e-05]
[1743949692999,0.084952,82439.0,82438.0,0.1228521]
[1743949693200,0.094952,82439.0,82438.0,0.1228521]
[1743949693402,0.094952,82439.0,82438.0,0.0379]
[1743949694503,0.084952,82439.0,82438.0,0.0379]
[1743949695307,0.085952,82439.0,82438.0,0.03862]
[1743949695511,0.086952,82439.0,82438.0,0.03862]
[1743949695709,0.096952,82439.0,82438.0,0.03862]
[1743949697608,0.086952,82439.0,82438.0,0.03862]
[1743949698811,0.085952,82439.0,82438.0,0.03862]
[1743949703012,0.325952,82439.0,82438.0,0.03862]
[1743949703213,0.326872,82439.0,82438.0,0.00072]
[1743949705703,0.336872,82439.0,82438.0,0.00072]
[1743949706109,0.0849551,82436.0,82435.0,8e-05]
[1743949706308,0.0849582,82433.0,82432.0,0.00018184]
[1743949706609,0.3349582,82433.0,82432.0,0.00018184]
[1743949706811,0.3449582,82433.0,82432.0,0.00018184]
[1743949707911,0.3461182,82433.0,82432.0,0.00018184]
[1743949708715,0.35820231,82433.0,82432.0,0.00018184]
[1743949712024,0.35820231,82433.0,82432.0,1.50018184]
[1743949712216,0.0849644,82427.0,82426.0,8e-05]
[1743949712416,0.0849716,82420.0,82419.0,0.00060665]
[1743949712613,0.0949716,82420.0,82419.0,0.00060665]
[1743949712815,0.0949716,82420.0,82419.0,1.50060665]
[1743949713019,0.0949716,82420.0,82419.0,1.50980822]
[1743949713920,0.0949716,82420.0,82419.0,1.51080822]
[1743949715117,0.0949716,82420.0,82419.0,1.51244822]
[1743949720530,0.1049716,82420.0,82419.0,0.00324665]
[1743949720834,0.1062516,82420.0,82419.0,0.00324665]
[1743949721224,0.0849798,82412.0,82411.0,0.00018195]
[1743949721424,0.6957798,82412.0,82411.0,0.00018195]
[1743949721932,0.6971398,82412.0,82411.0,0.00018195]
[1743949722130,0.6971398,82412.0,82411.0,1.50018195]
[1743949722332,0.7687398,82412.0,82411.0,1.50018195]
[1743949722530,0.7697398,82412.0,82411.0,1.50018195]
[1743949722934,0.7697398,82412.0,82411.0,1.50318195]
[1743949723529,0.7707398,82412.0,82411.0,1.50018195]
[1743949723931,0.7807398,82412.0,82411.0,1.50018195]
[1743949726835,0.7807398,82412.0,82411.0,0.00018195]
[1743949731344,0.4199398,82412.0,82411.0,0.00018195]
[1743949731735,0.7807398,82412.0,82411.0,0.00018195]
[1743949742354,0.7707398,82412.0,82411.0,0.00018195]
[1743949743954,0.7807398,82412.0,82411.0,0.00018195]
[1743949748260,0.7807398,82412.0,82411.0,0.03538195]
[1743949751764,0.7707398,82412.0,82411.0,0.03538195]
[1743949759468,0.7707398,82412.0,82411.0,0.00018195]
[1743949759670,0.7807398,82412.0,82411.0,0.00018195]
[1743949762573,0.7807398,82412.0,82411.0,0.07588195]
[1743949763464,0.7807398,82412.0,82411.0,0.03718195]
[1743949766564,0.3737398,82412.0,82411.0,0.03718195]
[1743949766765,0.3737398,82412.0,82411.0,1.57618195]
[1743949767059,0.3383398,82412.0,82411.0,1.57618195]
[1743949768165,0.3383398,82412.0,82411.0,1.66116275]
[1743949768367,0.3383398,82412.0,82411.0,1.57618195]
[1743949774076,0.3383398,82412.0,82411.0,1.79407273]
[1743949774377,0.3369798,82412.0,82411.0,1.87905353]
[1743949775477,0.0869798,82412.0,82411.0,1.87905353]
[1743949777077,0.0424893,82414.0,82411.0,1.87905353]
[1743949777078,0.0424878,82416.0,82415.0,0.0849757]
[1743949777579,0.1274635,82416.0,82415.0,0.1986757]
[1743949777778,0.1274635,82416.0,82415.0,0.25483774]
[1743949777964,0.1274635,82416.0,82415.0,0.1986757]
[1743949778574,0.1294635,82416.0,82415.0,0.1986757]
[1743949778775,0.1660635,82416.0,82415.0,0.1986757]
[1743949779782,0.1670635,82416.0,82415.0,0.1986757]
[1743949782376,0.1684235,82416.0,82415.0,1.6986757]
[1743949783084,0.1684235,82416.0,82415.0,1.6599757]
[1743949785989,0.1684235,82416.0,82415.0,1.6972757]
[1743949786375,0.1684235,82416.0,82415.0,0.1227757]
[1743949790100,0.1274677,82415.0,82412.0,1.584979]
[1743949790295,0.0849788,82413.0,82412.0,1.6274687]
[1743949790600,0.0849788,82413.0,82412.0,1.5849798]
[1743949790807,0.1226788,82413.0,82412.0,1.5849798]
[1743949791099,0.1615788,82413.0,82412.0,1.5849798]
[1743949791298,0.1615788,82413.0,82412.0,1.6227798]
[1743949791497,0.1625788,82413.0,82412.0,1.6227798]
[1743949792501,0.1635788,82413.0,82412.0,1.6227798]
[1743949794099,0.1649388,82413.0,82412.0,1.6227798]
[1743949795205,0.1649388,82413.0,82412.0,1.5849798]
[1743949795604,0.1749388,82413.0,82412.0,1.5]
[1743949796000,0.0849798,82412.0,82411.0,0.00018195]
[1743949796304,0.3249798,82412.0,82411.0,0.00018195]
[1743949796506,0.4003798,82412.0,82411.0,0.00018195]
[1743949796803,0.7611798,82412.0,82411.0,0.00018195]
[1743949797207,0.7721798,82412.0,82411.0,0.00018195]
[1743949797592,0.77457981,82412.0,82411.0,0.00018195]
[1743949800799,0.76457981,82412.0,82411.0,0.00018195]
[1743949802507,1.03457981,82412.0,82411.0,0.00018195]
[1743949802811,0.0849808,82411.0,82410.0,0.17008]
[1743949803009,0.6063408,82411.0,82410.0,0.17008]
[1743949803207,0.6820408,82411.0,82410.0,0.17008]
[1743949803407,0.0424945,82404.0,82397.0,0.29011562]
[1743949803611,0.4457912,82401.0,82397.0,0.29011562]
[1743949803811,0.6957912,82401.0,82397.0,0.29011562]
[1743949804106,0.6957912,82401.0,82400.0,1.6]
[1743949804307,0.3349912,82401.0,82400.0,1.6849922]
[1743949804518,0.0863512,82401.0,82400.0,1.6849922]
[1743949804812,0.0849912,82401.0,82400.0,1.6849922]
[1743949805003,0.0849912,82401.0,82400.0,1.7623922]
[1743949805508,0.0849912,82401.0,82400.0,1.7643922]
[1743949806210,0.0849912,82401.0,82400.0,1.6814]
[1743949806409,0.08639121,82401.0,82400.0,1.7663922]